Cogmind - Beta 17.1 @@@ ROGUE MODE // 2026.09.20 @ 05:29:37 Player: rootmos Result: Destroyed by S-27 Virus with Autogun Performance ------------- Evolutions (3) 1500 Regions Visited (7) 1400 Robots Destroyed (103) 515 Value Destroyed (3570) 3570 Prototype IDs (30) 600 Alien Tech Used (0) 0 Bonus (313) 313 TOTAL SCORE: 7898 Bonus ------- High Alert Combat Kills 13 Aligned with FarCom 300 Cogmind --------- Core Integrity 0/700 Matter 256/300 Energy 14/100 System Corruption 0% Temperature Cool (-100) Movement Core (50) Location -7/Factory Parts ------- > --- POWER (3) -------- (None) > --- PROPULSION (2) --- (None) > --- UTILITY (5) ------ Cryofiber Web Structural Scanner > --- WEAPON (3) ------- (None) > --- INVENTORY (5) ---- Transmission Jammer Plasma Cannon Peak State ------------ > --- POWER ------------ Nuclear Core Reinforced Deuterium Engine Micro Nuclear Core > --- PROPULSION ------- Advanced Treads Medium Treads > --- UTILITY ---------- Cryofiber Web Improved Heat Sink Trap Scanner Improved Sensor Array Transmission Jammer > --- WEAPON ----------- Advanced Beam Rifle Minigun Heavy Rocket Launcher > --- INVENTORY -------- Light Treads Improved Heat Sink Transmission Jammer Hardlight Generator Advanced Beam Rifle [Rating: 46] Favorites ----------- Power Light Nuclear Core Engine Ion Engine Power Core Light Nuclear Core Propulsion Advanced Treads Treads Advanced Treads Leg Aluminum Leg Hover Unit Gravmag System Utility Improved Heat Sink Device Improved Heat Sink Storage Small Storage Unit Processor Targeting Computer Protection Power Shielding Weapon Improved Medium Laser Energy Gun Improved Medium Laser Energy Cannon Heavy Particle Cannon Ballistic Gun Minigun Ballistic Cannon Assault Cannon Launcher Heavy Rocket Launcher Build | -11 -10 -9 -9 -9 -8 -8 -7 ------- Run | Yrd Mat Mat Min Exi Min Mat Fac Slots Evolved 6 | . . 2 . . . 2 2 Power 2 | . . . . . . 1 1 Propulsion . | . . . . . . . . Utility 3 | . . 2 . . . . 1 Weapon 1 | . . . . . . 1 . Parts Attached 104 | . 11 28 1 1 5 36 22 Power 19 | . 1 4 . . 1 8 5 Engine 12 | . 1 4 . . . 3 4 Core 7 | . . . . . 1 5 1 Reactor . | . . . . . . . . Propulsion 25 | . 4 8 . . 4 5 4 Treads 7 | . . . . . . 5 2 Leg 17 | . 4 8 . . 4 . 1 Wheel . | . . . . . . . . Hover 1 | . . . . . . . 1 Flight . | . . . . . . . . Utility 35 | . 4 9 1 . . 14 7 Device 24 | . 3 6 . . . 10 5 Storage . | . . . . . . . . Processor 3 | . . 1 . . . 1 1 Hackware . | . . . . . . . . Protection 8 | . 1 2 1 . . 3 1 Artifact . | . . . . . . . . Weapon 25 | . 2 7 . 1 . 9 6 Energy Gun 10 | . 1 4 . . . 3 2 Energy Cannon 3 | . . 1 . . . 2 . Ballistic Gun 8 | . 1 2 . 1 . 2 2 Ballistic Cannon 2 | . . . . . . 2 . Launcher 2 | . . . . . . . 2 Special Weapon . | . . . . . . . . Impact Weapon . | . . . . . . . . Slashing Weapon . | . . . . . . . . Piercing Weapon . | . . . . . . . . Special Melee Weapon . | . . . . . . . . Unidentified Prototypes 5 | . . 3 . . . 2 . Parts Lost 41 | . 3 7 1 . 1 4 25 Power 8 | . . 1 . . . 1 6 Propulsion 8 | . 1 . . . 1 . 6 Utility 12 | . 1 4 . . . . 7 Weapon 13 | . 1 2 1 . . 3 6 Highest Loss Streak 11 | . 3 4 1 . 1 3 11 To Critical Strikes . | . . . . . . . . Average Backups 4 | . 4 4 4 4 4 4 4 Power . | . 1 1 1 1 1 . . Propulsion . | . 2 1 1 1 . . . Utility . | . . . 1 . . . 1 Weapon 2 | . . 1 1 1 3 2 1 Tool/Special . | . . . . . . . . Unused Backups 18 | . 5 3 2 1 . 4 3 Power 4 | . . . 2 1 . . 1 Propulsion 5 | . 3 2 . . . . . Utility 5 | . 1 1 . . . 2 1 Weapon 4 | . 1 . . . . 2 1 Tool/Special . | . . . . . . . . Average Slot Usage (%) 94 | . 98 90 100 94 88 97 91 Engine 8 | . 14 10 11 11 2 9 5 Core 6 | . . . . . 8 8 12 Treads 9 | . . . . . . 17 14 Leg 9 | . 27 22 22 22 22 . . Device 23 | . 17 26 14 11 11 22 33 Processor 5 | . . 4 11 11 11 5 1 Protection 8 | . 6 4 18 22 22 7 . Energy Gun 8 | . 13 7 11 5 . 11 6 Energy Cannon 2 | . . 3 . . . 2 3 Ballistic Gun 8 | . 14 11 11 11 11 6 7 Ballistic Cannon 1 | . . . . . . 4 . Peak Build Rating 46 | . 7 15 16 28 33 41 46 Average Rating 27 | . 6 11 15 21 31 34 38 On Entrance 18 | 6 6 7 15 16 28 33 35 Avg Prop Armor Cover (%) 13 | . . . . . . . 13 Naked Turns . | . . . . . . . . Heaviest Build 47 | 10 12 16 20 24 24 40 47 Greatest Support 50 | 20 20 23 23 23 30 44 50 Greatest Overweight (x) 1 | . . . . 1 1 1 1 Average Overweight (x) . | . . . . . . . . Largest Inventory Capacity 8 | . 8 5 5 5 5 5 5 Average Capacity 5 | . 5 5 5 5 5 5 5 Most Carried 5 | . 5 5 5 5 5 5 5 Average Carried 4 | . 4 4 4 4 4 4 4 Final Capacity 8 | 8 5 5 5 5 5 5 5 Final Carried 6 | 6 5 5 5 5 5 5 2 Class Distribution -------------------- 49% | Skirmisher 33% | Scavenger-Mutant 8% | Mutant 7% | Tank Dominant Class ---------------- Mutant | -10/Materials Scavenger-Mutant | -9/Materials Scavenger-Mutant | -9/Mines Scavenger-Mutant | -9/Exiles Scavenger-Mutant | -8/Mines Skirmisher | -8/Materials Skirmisher | -7/Factory Resources | -11 -10 -9 -9 -9 -8 -8 -7 ----------- Run | Yrd Mat Mat Min Exi Min Mat Fac Matter Collected 1923 | 200 119 413 72 . 55 776 288 Remotely . | . . . . . . . . Salvage Created 3921 | . 223 842 337 . 194 1695 630 Parts 221 | . 8 54 26 . 8 84 41 Haulers Intercepted . | . . . . . . . . Recyclers Shooed . | . . . . . . . . Parts Field Recycled . | . . . . . . . . Retrieved Matter . | . . . . . . . . Parts Self-Destructed . | . . . . . . . . Prevented . | . . . . . . . . Parts Restored . | . . . . . . . . Kills | -11 -10 -9 -9 -9 -8 -8 -7 ------- Run | Yrd Mat Mat Min Exi Min Mat Fac Combat Hostiles Destroyed 89 | . 5 20 11 . 4 34 15 Guns 64 | . 5 17 11 . 4 21 6 Cannons 14 | . . 2 . . . 10 2 AOE 9 | . . . . . . 3 6 Classes Destroyed 13 | . 1 3 1 . 1 6 1 Worker 3 | . . . . . . 1 2 Builder 3 | . . . . . . 2 1 Tunneler 3 | . . . . . . 1 2 Recycler 1 | . . . . . . 1 . Mechanic 1 | . . . . . . 1 . Watcher 3 | . . . . . . 3 . Swarmer 24 | . . 4 6 . . 7 7 Grunt 41 | . 5 10 3 . 3 17 3 Brawler 5 | . . . 2 . . 2 1 Duelist 1 | . . 1 . . . . . Sentry 15 | . . 5 . . . 8 2 Hunter 1 | . . . . . 1 . . Programmer 2 | . . . . . . . 2 Best Kill Streak 8 | . 3 6 6 . 3 8 7 Combat Bots Only 6 | . 3 6 6 . 3 6 4 Max Kills in Single Turn 4 | . 1 1 1 . 1 3 4 Gunslinging . | . . . . . . . . Exploded 3 | . . . . . . 2 3 Melee . | . . . . . . . . Uniques/NPCs Destroyed . | . . . . . . . . Combat | -11 -10 -9 -9 -9 -8 -8 -7 -------- Run | Yrd Mat Mat Min Exi Min Mat Fac Hostile Shots Fired 674 | . 67 138 33 . 17 164 255 Missed 202 | . 17 40 12 . 6 40 87 Hits 472 | . 50 98 21 . 11 124 168 Melee 15 | . . 1 1 . . 3 10 Projectile 457 | . 50 97 20 . 11 121 158 AOE 3 | . . . . . . . 3 Critical Strikes 9 | . . . . . . 3 6 Damage Taken 6878 | . 652 1117 187 . 182 1961 2779 Core 1592 | . 207 196 54 . . 426 709 Absorbed by Shields 428 | . . . . . . 252 176 Redirected to Shielding 209 | . 53 11 . . . 32 113 Regen/Repaired (Parts) 103 | . . . . . . 103 . Core Remaining (%) 44 | 100 17 . . . 37 22 . Volleys Fired 202 | . 34 48 19 . . 65 36 Largest 3 | . 2 2 2 . . 3 3 Hottest 173 | . 70 91 79 . . 173 161 Shots Fired 516 | . 62 90 38 . 20 212 94 Gun 441 | . 62 83 38 . 20 162 76 Cannon 71 | . . 7 . . . 50 14 Launcher 4 | . . . . . . . 4 Special . | . . . . . . . . Kinetic 277 | . 28 48 19 . 20 126 36 Thermal 197 | . 34 26 19 . . 68 50 Explosive 4 | . . . . . . . 4 Electromagnetic 38 | . . 16 . . . 18 4 Robot Hit Streak 23 | . 9 11 13 . 23 15 10 Robot Miss Streak 5 | . 3 4 2 . 1 4 5 Penetration Max 1 | . . . . . . 1 . Secondary Targets 5 | . 2 3 . . . . . Max Gunslinging Chain 1 | . 1 1 . . . . . Autonomous 76 | . . . . . 20 56 . Shots Hit Robots 359 | . 44 67 25 . 19 149 55 Core Hits 160 | . 15 30 13 . 6 63 33 Critical Kills 3 | . . 1 . . . 2 . Critical Parts Destroyed 2 | . . . . . . 2 . Critical Strikes 16 | . 2 4 1 . . 8 1 Burn 10 | . 2 3 1 . . 3 1 Meltdown 1 | . . 1 . . . . . Destroy 4 | . . . . . . 4 . Corrupt 1 | . . . . . . 1 . Melee Attacks . | . . . . . . . . Impact . | . . . . . . . . Slashing . | . . . . . . . . Piercing . | . . . . . . . . Sneak Attacks . | . . . . . . . . Combat Hostiles . | . . . . . . . . Follow-up Attacks . | . . . . . . . . Damage Inflicted 8602 | . 454 1033 409 . 539 3934 2233 Guns 6390 | . 454 907 409 . 539 3031 1050 Cannons 1092 | . . 123 . . . 710 259 Explosions 1114 | . . . . . . 193 921 Melee . | . . . . . . . . Ramming 6 | . . 3 . . . . 3 Kinetic 4413 | . 144 503 174 . 539 2631 422 Thermal 2946 | . 310 354 235 . . 993 1054 Explosive 748 | . . . . . . 44 704 Electromagnetic 489 | . . 173 . . . 266 50 Impact . | . . . . . . . . Slashing . | . . . . . . . . Piercing . | . . . . . . . . Highest Corruption . | . . . . . . . . Average Corruption . | . . . . . . . . Corruption Purged . | . . . . . . . . Corruption Blocked . | . . . . . . . . Overload Shots . | . . . . . . . . Overflow Damage 100 | . . . . . . 37 63 Projectiles 37 | . . . . . . 37 . Explosions 63 | . . . . . . . 63 Melee . | . . . . . . . . Knockbacks 6 | . . . . . . 6 . Impact . | . . . . . . . . Kinetic 5 | . . . . . . 5 . Secondary 1 | . . . . . . 1 . Self-Inflicted Damage 709 | . . . . . . 254 455 Shots 13 | . . . . . . 4 9 Rammed 1 | . . . . . . . 1 Targets Rammed 5 | . . 4 . . . . 1 Kicked 4 | . . 4 . . . . . Crushed . | . . . . . . . . Highest Temperature 650 | . 353 33 . . . 650 137 Average Temperature 159 | . 142 10 . . . 190 62 Received Heat Transfer 2190 | . 366 468 12 . 54 662 628 Effects 11 | . 3 . . . . 8 . Energy Bleed 3 | . 1 . . . . 2 . Interference 4 | . 2 . . . . 2 . Damage (minor) 1 | . . . . . . 1 . Damage (major) 1 | . . . . . . 1 . Damage (core) 2 | . . . . . . 2 . Siege Activations . | . . . . . . . . Martial Activations . | . . . . . . . . Shielding Activations . | . . . . . . . . Robots Disrupted . | . . . . . . . . Combat Hostiles . | . . . . . . . . Robots Corrupted . | . . . . . . . . Combat Hostiles . | . . . . . . . . Parts Fried 1 | . . . . . . 1 . Impact Corruptions . | . . . . . . . . Robots Melted 2 | . . 1 . . . . 1 Combat Hostiles 2 | . . 1 . . . . 1 Parts Melted 11 | . 3 2 . . . 3 3 Heat Transferred 6338 | . 1073 999 592 . . 2050 1624 Parts Sabotaged . | . . . . . . . . Parts Stolen . | . . . . . . . . Parts Stripped . | . . . . . . . . Power Chain Reactions 4 | . . . . . . 3 1 Alert | -11 -10 -9 -9 -9 -8 -8 -7 ------- Run | Yrd Mat Mat Min Exi Min Mat Fac Maximum Alert Level 2 | . . . 1 . . 1 2 Low Security (%) 61 | . 100 100 50 . 100 18 83 Level 1 37 | . . . 49 . . 81 14 Level 2 . | . . . . . . . 2 Level 3 . | . . . . . . . . Level 4 . | . . . . . . . . Level 5 . | . . . . . . . . High Security . | . . . . . . . . Max Security . | . . . . . . . . Peak Influence 409 | . 65 182 271 . 81 357 409 Initial 138 | . . 1 61 . . . 138 Average 142 | . 19 71 164 . 17 231 121 Influence Increases 3032 | . 150 564 310 . 111 1062 835 Destroy 0b10 Robot/C 1780 | . 100 400 220 . 80 680 300 Destroy 0b10 Robot/NC 70 | . . . . . . 45 25 Destroy Leader 396 | . 30 100 30 . 20 156 60 Successful Hack 18 | . 5 4 . . . 5 4 Disable Machine 180 | . . 15 . . . 90 75 Anti-Garrison Action 150 | . . . . . . . 150 Destroy Structure 198 | . . . . . 11 86 101 Partial Spotted 15 | . 15 . . . . . . Lose Combat Pursuer 225 | . . 45 60 . . . 120 Influence Decreases 2691 | . 146 410 277 191 111 756 800 Entered New Map 459 | . . 3 97 191 . . 168 Time Decay 1690 | . 116 347 170 . 101 566 390 Lost Part 392 | . 30 60 10 . 10 40 242 Purge Threat 150 | . . . . . . 150 . Squads Dispatched 9 | . 1 1 . . . 2 5 Investigation 1 | . . . . . . . 1 Extermination 2 | . . . . . . . 2 Reinforcement 4 | . 1 1 . . . 2 . Assault 2 | . . . . . . . 2 Garrison . | . . . . . . . . Intercept . | . . . . . . . . Searches Triggered . | . . . . . . . . Construction Impeded . | . . . . . . . . Haulers Reinforced . | . . . . . . . . Active Scanning Responses . | . . . . . . . . Cargo Convoy Interrupts 1 | . . . . . . . 1 Stealth | -11 -10 -9 -9 -9 -8 -8 -7 --------- Run | Yrd Mat Mat Min Exi Min Mat Fac Distress Signals 9 | . 1 4 . . . 3 1 Communications Jammed 1 | . . . . . . . 1 Distress Signals 1 | . . . . . . . 1 Times Spotted 173 | . 20 38 15 . 4 48 48 Peak Tracking Total 20 | . 5 5 6 . 3 7 20 Tactical Retreats 17 | . 5 7 2 . . . 3 ECM-based Alert Blocks 14 | . 10 4 . . . . . Traps | -11 -10 -9 -9 -9 -8 -8 -7 ------- Run | Yrd Mat Mat Min Exi Min Mat Fac Traps Triggered 3 | . . . . . . 2 1 Indirectly . | . . . . . . . . Trap Hack Attempts . | . . . . . . . . Triggered . | . . . . . . . . Disarmed . | . . . . . . . . Reprogrammed . | . . . . . . . . Reused . | . . . . . . . . Traps Extracted . | . . . . . . . . Installed . | . . . . . . . . Triggered . | . . . . . . . . Machines | -11 -10 -9 -9 -9 -8 -8 -7 ---------- Run | Yrd Mat Mat Min Exi Min Mat Fac Machines Disabled 13 | . . 1 . . . 6 6 Max in Single Turn 2 | . . 1 . . . 1 2 Garrison Access 2 | . . . . . . 1 1 Machines Repaired . | . . . . . . . . Machines Dismantled . | . . . . . . . . Machines Sabotaged . | . . . . . . . . Overloaded Fab Kills . | . . . . . . . . Hacking | -11 -10 -9 -9 -9 -8 -8 -7 --------- Run | Yrd Mat Mat Min Exi Min Mat Fac Machines Accessed 22 | . 3 4 . 3 . 10 2 Terminals 12 | . 3 2 . . . 6 1 Fabricators . | . . . . . . . . Repair Stations 2 | . . . . . . 2 . Recycling Units 1 | . . 1 . . . . . Scanalyzers 2 | . . 1 . . . 1 . Garrison Access 2 | . . . . . . 1 1 Total Hacks 44 | . 8 8 . 5 . 20 3 Successful 28 | . 2 7 . 5 . 13 1 Failed 15 | . 6 1 . . . 6 2 Catastrophic 4 | . 1 . . . . 2 1 Database Lockouts 1 | . . . . . . 1 . Manual 1 | . . . . 1 . . . Terminals 23 | . 8 4 . . . 10 1 Fabricators . | . . . . . . . . Repair Stations 6 | . . . . . . 6 . Recycling Units 1 | . . 1 . . . . . Scanalyzers 5 | . . 3 . . . 2 . Garrison Access 4 | . . . . . . 2 2 Terminal Hacks 18 | . 2 3 . 5 . 7 1 Record 5 | . . 1 . 4 . . . Prototype ID Bank 1 | . 1 . . . . . . Emergency Access Points 4 | . . . . . . 3 1 Alert Level 3 | . . 2 . . . 1 . Unreport Threat 1 | . . . . . . 1 . Locate Traps 2 | . 1 . . . . 1 . Maintenance Status 1 | . . . . . . 1 . Proto ID Catalog 1 | . . . . 1 . . . Fabricator Hacks . | . . . . . . . . Repair Station Hacks 4 | . . . . . . 4 . Scan Component 2 | . . . . . . 2 . Repair 2 | . . . . . . 2 . Recycling Unit Hacks 1 | . . 1 . . . . . Retrieve Matter 1 | . . 1 . . . . . Scanalyzer 4 | . . 3 . . . 1 . Retrieve Study 4 | . . 3 . . . 1 . Garrison Access Hacks 1 | . . . . . . 1 . Seal Access 1 | . . . . . . 1 . Unauthorized Hacks . | . . . . . . . . Terminals . | . . . . . . . . Fabricators . | . . . . . . . . Repair Stations . | . . . . . . . . Recycling Units . | . . . . . . . . Scanalyzers . | . . . . . . . . Garrison Access . | . . . . . . . . Data Cores Recovered . | . . . . . . . . Used . | . . . . . . . . Hacking Detections 8 | . 1 2 . . . 4 1 Full Trace Events 4 | . 1 1 . . . 1 1 Feedback Events . | . . . . . . . . Feedback Blocked . | . . . . . . . . Robot Schematics Acquired . | . . . . . . . . Robots Built . | . . . . . . . . Authchips . | . . . . . . . . Time . | . . . . . . . . Total Robot Build Rating . | . . . . . . . . Part Schematics Acquired . | . . . . . . . . Parts Built . | . . . . . . . . Authchips . | . . . . . . . . Time . | . . . . . . . . Total Part Build Rating . | . . . . . . . . Part Studies Acquired 4 | . . 3 . . . 1 . Parts Repaired 2 | . . . . . . 2 . Time 70 | . . . . . . 70 . Parts Recycled . | . . . . . . . . Recycled Matter . | . . . . . . . . Retrieved Matter . | . . . . . . . . Retrieved Components . | . . . . . . . . Parts Scanalyzed . | . . . . . . . . Part Schematics Acquired . | . . . . . . . . Parts Damaged . | . . . . . . . . Bothacking | -11 -10 -9 -9 -9 -8 -8 -7 ------------ Run | Yrd Mat Mat Min Exi Min Mat Fac Used RIF Installer . | . . . . . . . . Robots Hacked . | . . . . . . . . Non-combat . | . . . . . . . . Combat . | . . . . . . . . Robot Hacks Applied . | . . . . . . . . Relay Couplers Released 1 | . . . . . . . 1 Machine Destruction 1 | . . . . . . . 1 Fabnet Peak Effective % . | . . . . . . . . Robots Rewired . | . . . . . . . . Allies Hacked . | . . . . . . . . Hacks Repelled . | . . . . . . . . Allies | -11 -10 -9 -9 -9 -8 -8 -7 -------- Run | Yrd Mat Mat Min Exi Min Mat Fac Total Allies . | . . . . . . . . Largest Group . | . . . . . . . . Highest-Rated Group . | . . . . . . . . Highest-Rated Ally . | . . . . . . . . Total Orders . | . . . . . . . . Ally Attacks . | . . . . . . . . Total Damage . | . . . . . . . . Kills . | . . . . . . . . Allies Corrupted . | . . . . . . . . Allies Melted . | . . . . . . . . Intel | -11 -10 -9 -9 -9 -8 -8 -7 ------- Run | Yrd Mat Mat Min Exi Min Mat Fac Active Infowar (turns) 3560 | . 354 341 . . . 1366 1499 Sensors 1644 | . . . . . . 1366 278 Structural 187 | . 50 . . . . . 137 Traps 384 | . . . . . . . 384 Jamming 1212 | . . . . . . . 1212 ECM 657 | . 316 341 . . . . . Robot Analysis Total . | . . . . . . . . Derelict Logs Recovered 1 | . . . 1 . . . . Drone Launches . | . . . . . . . . Drone Recoveries . | . . . . . . . . Exploration | -11 -10 -9 -9 -9 -8 -8 -7 ------------- Run | Yrd Mat Mat Min Exi Min Mat Fac Turns Passed 6654 | . 421 1106 343 344 514 2427 1499 Spaces Moved 3879 | 1 253 691 234 246 388 1263 803 Core 15 | . . . . . . . 15 Treads 2034 | . . . . . . 1256 778 Legs 1830 | 1 253 691 234 246 388 7 10 Wheels . | . . . . . . . . Hover . | . . . . . . . . Flight . | . . . . . . . . Fastest Speed 50 | 120 120 105 112 112 112 145 50 Average Speed 135 | 120 120 115 112 137 123 147 153 Slowest Speed 240 | 120 120 120 112 182 182 225 240 Overloaded Moves . | . . . . . . . . Propulsion Burnouts . | . . . . . . . . Robots Hopped . | . . . . . . . . Potential Cave-ins . | . . . . . . . . Cave-ins Triggered . | . . . . . . . . Exploration Rate (%) 48 | 2 47 43 56 62 85 72 19 Regions Visited 7 Branch Regions 3 Pre-discovered Areas . | . . . . . . . . Known Exits Taken 1 | . . . . . 1 . . Unknown Exits Taken 6 | 1 1 1 1 1 . 1 . Scrap Searched 2 | . . . 2 . . . . Spaces Dug 2 | . . . . . . 2 . Terrain Destroyed 227 | . . . . . 13 92 122 Melee . | . . . . . . . . Projectile 49 | . . . . . 13 34 2 AOE 178 | . . . . . . 58 120 Terrain Rammed . | . . . . . . . . Walls Destroyed . | . . . . . . . . Machines Disabled . | . . . . . . . . Actions | -11 -10 -9 -9 -9 -8 -8 -7 --------- Run | Yrd Mat Mat Min Exi Min Mat Fac Total 4880 | . 312 912 279 253 422 1709 993 Wait 582 | . 10 115 20 . 27 293 117 Move 3872 | . 252 690 233 245 387 1262 803 Hop . | . . . . . . . . Pick Up 38 | . 1 7 3 3 1 17 6 Fast Attach 21 | . 2 7 . . . 4 8 Attach 24 | . 2 2 1 1 1 8 9 Detach 1 | . . . . . . . 1 Swap 79 | . 7 21 1 . 4 37 9 Drop 56 | . 4 18 2 4 2 23 3 Fire 202 | . 34 48 19 . . 65 36 Melee . | . . . . . . . . Ram . | . . . . . . . . Kick 4 | . . 4 . . . . . Crush 1 | . . . . . . . 1 Escape Stasis . | . . . . . . . . Rewire . | . . . . . . . . Trap . | . . . . . . . . Miscellaneous . | . . . . . . . . Route ------- -11/Scrapyard -10/Materials -9/Materials (discovered 2 exits: *Mat / [*Min]) -9/Mines (discovered 3 exits: *Mat x2 / *Exi) -9/Exiles (discovered 2 exits: [*Min x2]) -8/Mines (discovered 2 exits: *Mat x2) -8/Materials (discovered 2 exits: *Fac x2) -7/Factory (discovered 1 exit: [*Fac]) History --------- Turn | Location | Event 1 | -11/Scrapyard | Discovered new exit (range 0) 1 | -11/Scrapyard | Entered Materials 233 | -10/Materials | Core integrity fell below 50% 266 | -10/Materials | Lost 3 parts (1n1u1w) 281 | -10/Materials | Core integrity fell below 20% 369 | -10/Materials | Discovered new exit (range 11) 422 | -10/Materials | Entered another Materials area 422 | -9/Materials | Evolved 2 slots: Utility x2 585 | -9/Materials | Build established: Scavenger-Mutant 926 | -9/Materials | Lost 4 parts (1p2u1w) 1205 | -9/Materials | Discovered new exit (range 3) 1500 | -9/Materials | Discovered new exit (range 14) 1528 | -9/Materials | Entered Mines 1549 | -9/Mines | Identified exit to Materials 1641 | -9/Mines | Discovered exit to Materials (range 6) 1683 | -9/Mines | Core integrity fell below 50% 1853 | -9/Mines | Assembled infested the area 1865 | -9/Mines | Deemed a non-threat by the Exiles lab entrance 1866 | -9/Mines | Discovered new exit (range 5) 1871 | -9/Mines | Entered Exiles 1895 | -9/Exiles | Discovered new exit (range 15) 1907 | -9/Exiles | Met 8R-AWN 1930 | -9/Exiles | Met EX-HEX 1963 | -9/Exiles | Met EX-BIN 1983 | -9/Exiles | Aligned with FarCom system 1985 | -9/Exiles | Given EX-Vault access code 2025 | -9/Exiles | Opened EX-Vault 2042 | -9/Exiles | Found AWS/Gauss 2078 | -9/Exiles | Warned to stay clear of 0b10 Research branches 2131 | -9/Exiles | Met EX-DEC 2197 | -9/Exiles | Discovered new exit (range 12) 2215 | -9/Exiles | Left Exiles lab with AWS/Gauss 2215 | -9/Exiles | Entered Mines 2666 | -8/Mines | Discovered exit to Materials (range 6) 2712 | -8/Mines | Discovered exit to Materials (range 12) 2729 | -8/Mines | Entered Materials 2729 | -8/Materials | Evolved 2 slots: Power x1, Weapon x1 3170 | -8/Materials | AWS/Gauss suddenly broke down 3471 | -8/Materials | Discovered new exit (range 4) 3583 | -8/Materials | Build established: Skirmisher 4374 | -8/Materials | Core integrity fell below 50% 4396 | -8/Materials | Lost 3 parts (1p2w) 4506 | -8/Materials | Central database locked down 4772 | -8/Materials | Repaired Rnf. Ion Engine 4794 | -8/Materials | Discovered new exit (range 4) 4874 | -8/Materials | Repaired Cryofiber Web 5156 | -8/Materials | Entered Factory 5156 | -7/Factory | Evolved 2 slots: Power x1, Utility x1 5996 | -7/Factory | Lost 3 parts (1p1n1w) 6085 | -7/Factory | Discovered new exit (range 11) 6519 | -7/Factory | Lost 4 parts (2p2w) 6583 | -7/Factory | Lost 5 parts (1p1n3u) 6613 | -7/Factory | Core integrity fell below 50% 6618 | -7/Factory | Cargo convoy interrupted 6644 | -7/Factory | Core integrity fell below 20% 6655 | -7/Factory | Destroyed by S-27 Virus with Autogun Last Messages --------------- 06620_ M-28 Smith unfolds itself. 06621_ C-45 Heavy ARC bursts open, deploying its payload. 06621_ G-50 Soldier unfolds itself. 06621_ G-47 Trooper unfolds itself. 06621_ B-48 Gladiator unfolds itself. 06621_ M-28 Smith unfolds itself. 06623_ Adv. Beam Rifle destroyed. 06624_ Med. Treads destroyed. 06636_ L-41 Fighter destroyed. 06639_ Slug penetrates Wall. 06640_ Lgt. Treads destroyed. 06643_ Penetrated by Slug. 06644_ G-47 Trooper destroyed. 06646_ Imp. Titanium Leg destroyed. 06646_ Penetrated by Slug. 06646_ Slug penetrates Wall. 06646_ Imp. Heat Sink destroyed. 06649_ Slug penetrates Wall. 06653_ Acquired Plasma Cannon. Map ----- +----------------------------------------------------+ | ?????????????????????????????????????????????????? | | ?????????????????????????????????????????????????? | | ?????????????????????????????????????????????????? | | ?????????????????????????????????????????????????? | | ?????????????????????????????????????????????????? | | ?????????????????????????????????????????????????? | | ?????????????????????????????????????????????????? | | ?????????????????????????????????????????????????? | | ?????????????????????????????????????????????????? | | ?????????????????????????????????????????????????? | | ?? ??????? ??????????????????????????????????????? | | ?? ?????? ##?????????????????????????????????? | | ?? ?????? ##?????????????????????????????????? | | ?? ?????? ##?????????????????????????????????? | | ?? ?????? ##?????????????????????????????????? | | ?? # ##?????????????????????????????????? | | ##/##??## ##?????????????????????????????????? | | ## ###### ##?????????????????????????????????? | | # ###### # ?????????????????????????????????? | | # # # # ?????????????????????????????????? | | # # ?????????????????????????????????? | | # [ ????? ##### ??????????????????? | | #% + s ??? #######??????????????????? | | # ? # = ##??????????????????? | | # s ! #! ##??????????????????? | | "% " # s /@ ##??????????????????? | | ####"%## ############## ##??????????????????? | | # " ########### ##??????????????????? | | # | =i" ##???###### ##??????????????????? | | # "%h ##???######! #### ##?????????????? | | ## "gb ####### ###+##### ##?????????????? | | # gh####### " ##?????????????? | | # bhh pg # hg### ##?????????????? | | ## !| gg#####xh #### ##?????????????? | | ## !| ##### #### ?????????? | | ## | ##?## / #################?????????? | | ## ##?## !%*######## ?????????? | | ## ##?## !%######## ?????????????????? | | ## ##?## [ + ?????????????????? | | ################?#####+######## ?????????????????? | | ############?### #####??????????????????? | | #????????????????""" ##?????????????????????? | | #????????????????""" ##?????????????????????? | | "" #????????????????""" *##?????????????????????? | | G"" #????????????????""" ##?????????????????????? | | #####??????????????????? ##?????????????????????? | | ????????????????????????####?????????????????????? | | ????????????????????????####?????????????????????? | | ?????????????????????????????????????????????????? | | ?????????????????????????????????????????????????? | +----------------------------------------------------+ Best States ------------- Heat Dissipation 62 Energy Generation 35 Energy Capacity 490 Matter Stores 300 Matter Capacity 300 Sight Range 16 Robot Scan Range 15 Terrain Scan Density 10 ECM Strength 1 Jamming Range 12 Base Temperature (-) 100 Armor Coverage 225 Power Shielding 33 Propulsion Shielding 66 Evasion (%) 55 Targeting Accuracy 8 Recoil Reduction 2 Particle Charging 15 Trap Extractor Capacity 6 Item Schematics ----------------- None Robot Schematics ------------------ None Fabricated ------------ Nothing Repaired ---------- Rnf. Ion Engine | 37% | -8/Materials Cryofiber Web | 50% | -8/Materials Studied --------- Hvy. Assault Rifle | -9/Materials | Hacked Aluminum Leg | -9/Materials | Hacked Ion Engine | -9/Materials | Hacked Lgt. Nuclear Core | -8/Materials | Hacked Alien Tech Used ----------------- None Achievements -------------- None Challenges ------------ None Game ------ Seed NetworkOpticalSpecial Manual? 0 Play Time 01:33:42 Cumulative 130.8 hours Start 2026.09.09 @ 09:46:32 End 2026.09.20 @ 05:29:37 Sessions 12 Manual Loads 0 Difficulty Rogue Special Mode None Game No. 80 Rogue 45 Adventurer 0 Explorer 35 Win Type - Total 1 Types 1/0/0/0/0/0/0/0/0/0 Lore% 32 Gallery% 36 Achievement% 29 Wizard Run 0 Options --------- Layout 0 ASCII 1 Keyboard 1 Movement Vi Keybinds 1 Fullscreen 0 Font 20/SmallcapsGlow Map View 50x62 Zoom Use 0% Tactical HUD 1 Map Filters NONE Filters NONE Steam 0 RUN: ee446395-7087-4fcb-a500-603bff2fbfd7